Cogmind - Beta 16 @@@ ROGUE MODE // 2026.01.26 @ 17:42:07 Player: Mutetourette Result: Destroyed by Y-45 Defender with Heavy Assault Rifle Performance ------------- Evolutions (0) 0 Regions Visited (2) 400 Robots Destroyed (4) 20 Value Destroyed (95) 95 Prototype IDs (0) 0 Alien Tech Used (0) 0 Bonus (0) 0 TOTAL SCORE: 515 Bonus ------- None Cogmind --------- Core Integrity 0/250 Matter 176/300 Energy 160/160 System Corruption 2% Temperature Cool (9) Movement Rolling (95) Ox1 Location -10/Mines Parts ------- > --- POWER (1) -------- Light Nuclear Core > --- PROPULSION (2) --- Wheel Wheel > --- UTILITY (2) ------ Large Storage Unit > --- WEAPON (2) ------- Light Assault Rifle Light Assault Rifle > --- INVENTORY (15) --- Heat Sink Large Matter Pod (18) Structural Scanner Sensor Array Mining Laser Peak State ------------ > --- POWER ------------ Ion Engine > --- PROPULSION ------- Wheel Wheel > --- UTILITY ---------- Large Storage Unit Seismic Detector > --- WEAPON ----------- Assault Rifle Light Assault Rifle > --- INVENTORY -------- Ion Engine Wheel Large Matter Pod Structural Scanner Sensor Array Particle Gun Light Assault Rifle Grenade Launcher Mining Laser [Rating: 8] Favorites ----------- Power Ion Engine Engine Ion Engine Power Core Light Nuclear Core Propulsion Wheel Wheel Wheel Utility Large Storage Unit Device Seismic Detector Storage Large Storage Unit Weapon Light Assault Rifle Energy Gun Particle Gun Ballistic Gun Light Assault Rifle Launcher Grenade Launcher Build | -11 -10 -10 ------- Run | Yrd Mat Min Slots Evolved . | . . . Power . | . . . Propulsion . | . . . Utility . | . . . Weapon . | . . . Parts Attached 14 | 7 1 6 Power 3 | 1 . 2 Engine 2 | 1 . 1 Core 1 | . . 1 Reactor . | . . . Propulsion 3 | 2 . 1 Treads . | . . . Leg . | . . . Wheel 3 | 2 . 1 Hover . | . . . Flight . | . . . Utility 3 | 2 1 . Device 1 | 1 . . Storage 2 | 1 1 . Processor . | . . . Hackware . | . . . Protection . | . . . Artifact . | . . . Weapon 5 | 2 . 3 Energy Gun 1 | . . 1 Energy Cannon . | . . . Ballistic Gun 3 | 2 . 1 Ballistic Cannon . | . . . Launcher 1 | . . 1 Special Weapon . | . . . Impact Weapon . | . . . Slashing Weapon . | . . . Piercing Weapon . | . . . Special Melee Weapon . | . . . Unidentified Prototypes . | . . . Parts Lost 7 | . . 7 Power 2 | . . 2 Propulsion 1 | . . 1 Utility 1 | . . 1 Weapon 3 | . . 3 Highest Loss Streak 6 | . . 6 To Critical Strikes . | . . . Average Backups 6 | 3 6 8 Power 1 | . 1 1 Propulsion . | . 1 . Utility 2 | . 1 3 Weapon 2 | 1 2 2 Tool/Special . | . . . Unused Backups 5 | . . 5 Power . | . . . Propulsion . | . . . Utility 4 | . . 4 Weapon 1 | . . 1 Tool/Special . | . . . Average Slot Usage (%) 94 | . 100 89 Engine 11 | . 14 9 Core 1 | . . 2 Wheel 27 | . 28 27 Device 10 | . 14 6 Storage 14 | . 14 14 Ballistic Gun 26 | . 28 25 Peak Build Rating 8 | 7 7 8 Average Rating 6 | 4 7 7 On Entrance 4 | . 7 7 Avg Prop Armor Cover (%) . | . . . Naked Turns . | . . . Heaviest Build 30 | 14 29 30 Greatest Support 20 | 20 20 20 Greatest Overweight (x) 1 | . 1 1 Average Overweight (x) . | . . 1 Largest Inventory Capacity 15 | 8 15 15 Average Capacity 13 | 7 14 15 Most Carried 11 | 5 8 11 Average Carried 6 | 3 6 8 Final Capacity 15 | 8 15 15 Final Carried 8 | 4 8 5 Class Distribution -------------------- 100% | Mutant Dominant Class ---------------- Mutant | -10/Materials Mutant | -10/Mines Resources | -11 -10 -10 ----------- Run | Yrd Mat Min Matter Collected 333 | 241 . 92 Remotely . | . . . Salvage Created 138 | 32 . 106 Parts 11 | 4 . 7 Haulers Intercepted . | . . . Recyclers Shooed . | . . . Parts Field Recycled . | . . . Retrieved Matter . | . . . Parts Self-Destructed . | . . . Prevented . | . . . Parts Restored . | . . . Kills | -11 -10 -10 ------- Run | Yrd Mat Min Combat Hostiles Destroyed 9 | . . 9 Guns 5 | . . 5 AOE 4 | . . 4 Classes Destroyed 3 | 1 . 2 Tunneler 2 | 2 . . Grunt 2 | . . 2 Assembled 7 | . . 7 Best Kill Streak 4 | 1 . 4 Combat Bots Only 4 | . . 4 Max Kills in Single Turn 2 | 1 . 2 Gunslinging . | . . . Exploded 2 | . . 2 Melee . | . . . Uniques/NPCs Destroyed . | . . . Combat | -11 -10 -10 -------- Run | Yrd Mat Min Hostile Shots Fired 67 | . . 67 Missed 17 | . . 17 Hits 50 | . . 50 Melee 6 | . . 6 Projectile 44 | . . 44 AOE 1 | . . 1 Critical Strikes 1 | . . 1 Damage Taken 913 | . . 913 Core 252 | . . 252 Absorbed by Shields . | . . . Core Remaining (%) 100 | 100 . . Volleys Fired 25 | 2 . 23 Largest 2 | 2 . 2 Hottest 95 | 40 . 95 Shots Fired 49 | 4 . 45 Gun 44 | 4 . 40 Cannon . | . . . Launcher 5 | . . 5 Special . | . . . Kinetic 42 | 4 . 38 Thermal 2 | . . 2 Explosive 5 | . . 5 Electromagnetic . | . . . Robot Hit Streak 9 | 2 . 9 Robot Miss Streak 4 | 1 . 4 Penetration Max . | . . . Secondary Targets 2 | . . 2 Max Gunslinging Chain 1 | . . 1 Shots Hit Robots 31 | 2 . 29 Core Hits 25 | 2 . 23 Critical Kills . | . . . Critical Parts Destroyed 1 | . . 1 Critical Strikes 1 | . . 1 Destroy 1 | . . 1 Melee Attacks . | . . . Impact . | . . . Slashing . | . . . Piercing . | . . . Sneak Attacks . | . . . Combat Hostiles . | . . . Follow-up Attacks . | . . . Damage Inflicted 629 | 24 . 605 Guns 294 | 24 . 270 Cannons . | . . . Explosions 335 | . . 335 Melee . | . . . Ramming . | . . . Kinetic 294 | 24 . 270 Thermal . | . . . Explosive 335 | . . 335 Electromagnetic . | . . . Impact . | . . . Slashing . | . . . Piercing . | . . . Highest Corruption 2 | . . 2 Average Corruption 2 | . . 2 Corruption Purged . | . . . Corruption Blocked . | . . . Effects 2 | . . 2 Matter Fused 1 | . . 1 Energy Discharges 1 | . . 1 Overload Shots . | . . . Overflow Damage 5 | . . 5 Projectiles . | . . . Explosions 5 | . . 5 Melee . | . . . Knockbacks . | . . . Impact . | . . . Kinetic . | . . . Secondary . | . . . Self-Inflicted Damage 131 | . . 131 Shots 5 | . . 5 Rammed . | . . . Targets Rammed . | . . . Kicked . | . . . Crushed . | . . . Highest Temperature 66 | . . 66 Average Temperature 16 | . . 16 Received Heat Transfer 117 | . . 117 Siege Activations . | . . . Martial Activations . | . . . Shielding Activations . | . . . Robots Disrupted . | . . . Combat Hostiles . | . . . Robots Corrupted . | . . . Combat Hostiles . | . . . Parts Fried . | . . . Impact Corruptions . | . . . Robots Melted . | . . . Combat Hostiles . | . . . Parts Melted . | . . . Heat Transferred . | . . . Parts Sabotaged . | . . . Parts Stolen . | . . . Parts Stripped . | . . . Power Chain Reactions . | . . . Alert | -11 -10 -10 ------- Run | Yrd Mat Min Maximum Alert Level . | . . . Low Security (%) 100 | 100 100 100 Level 1 . | . . . Level 2 . | . . . Level 3 . | . . . Level 4 . | . . . Level 5 . | . . . High Security . | . . . Max Security . | . . . Peak Influence 50 | 5 . 50 Initial . | . . . Average 4 | 1 . 11 Influence Increases 110 | 10 . 100 Destroy 0b10 Robot/C 40 | . . 40 Destroy 0b10 Robot/NC 10 | 10 . . Destroy Leader 10 | . . 10 Destroy Structure 35 | . . 35 Lose Combat Pursuer 15 | . . 15 Influence Decreases 110 | 10 . 100 Time Decay 70 | 10 . 60 Lost Part 40 | . . 40 Squads Dispatched . | . . . Investigation . | . . . Extermination . | . . . Reinforcement . | . . . Assault . | . . . Garrison . | . . . Intercept . | . . . Searches Triggered . | . . . Construction Impeded . | . . . Haulers Reinforced . | . . . Active Scanning Responses . | . . . Cargo Convoy Interrupts . | . . . Stealth | -11 -10 -10 --------- Run | Yrd Mat Min Distress Signals . | . . . Communications Jammed . | . . . Distress Signals . | . . . Times Spotted 18 | . . 18 Peak Tracking Total 15 | . . 15 Tactical Retreats 2 | . . 2 Traps | -11 -10 -10 ------- Run | Yrd Mat Min Traps Triggered . | . . . Indirectly . | . . . Trap Hack Attempts . | . . . Triggered . | . . . Disarmed . | . . . Reprogrammed . | . . . Reused . | . . . Traps Extracted . | . . . Installed . | . . . Triggered . | . . . Machines | -11 -10 -10 ---------- Run | Yrd Mat Min Machines Disabled . | . . . Max in Single Turn . | . . . Machines Repaired . | . . . Machines Dismantled . | . . . Machines Sabotaged . | . . . Overloaded Fab Kills . | . . . Hacking | -11 -10 -10 --------- Run | Yrd Mat Min Machines Accessed 2 | . 2 . Terminals 2 | . 2 . Fabricators . | . . . Repair Stations . | . . . Recycling Units . | . . . Scanalyzers . | . . . Garrison Access . | . . . Total Hacks 4 | . 4 . Successful 1 | . 1 . Failed 3 | . 3 . Catastrophic 1 | . 1 . Database Lockouts . | . . . Manual 3 | . 3 . Terminals 4 | . 4 . Fabricators . | . . . Repair Stations . | . . . Recycling Units . | . . . Scanalyzers . | . . . Garrison Access . | . . . Terminal Hacks . | . . . Fabricator Hacks . | . . . Repair Station Hacks . | . . . Recycling Unit Hacks . | . . . Scanalyzer . | . . . Garrison Access Hacks . | . . . Unauthorized Hacks 1 | . 1 . Terminals 1 | . 1 . Botnet 1 | . 1 . Fabricators . | . . . Repair Stations . | . . . Recycling Units . | . . . Scanalyzers . | . . . Garrison Access . | . . . Data Cores Recovered . | . . . Used . | . . . Hacking Detections 2 | . 2 . Full Trace Events . | . . . Feedback Events . | . . . Feedback Blocked . | . . . Robot Schematics Acquired . | . . . Robots Built . | . . . Authchips . | . . . Time . | . . . Total Robot Build Rating . | . . . Part Schematics Acquired . | . . . Parts Built . | . . . Authchips . | . . . Time . | . . . Total Part Build Rating . | . . . Part Studies Acquired . | . . . Parts Repaired . | . . . Time . | . . . Parts Recycled . | . . . Recycled Matter . | . . . Retrieved Matter . | . . . Retrieved Components . | . . . Parts Scanalyzed . | . . . Part Schematics Acquired . | . . . Parts Damaged . | . . . Bothacking | -11 -10 -10 ------------ Run | Yrd Mat Min Used RIF Installer . | . . . Robots Hacked . | . . . Non-combat . | . . . Combat . | . . . Robot Hacks Applied . | . . . Relay Couplers Released . | . . . Fabnet Peak Effective % . | . . . Robots Rewired . | . . . Allies Hacked . | . . . Hacks Repelled . | . . . Allies | -11 -10 -10 -------- Run | Yrd Mat Min Total Allies . | . . . Largest Group . | . . . Highest-Rated Group . | . . . Highest-Rated Ally . | . . . Total Orders . | . . . Ally Attacks . | . . . Total Damage . | . . . Kills . | . . . Allies Corrupted . | . . . Allies Melted . | . . . Intel | -11 -10 -10 ------- Run | Yrd Mat Min Active Infowar (turns) 334 | 2 240 92 Seismic 334 | 2 240 92 Robot Analysis Total . | . . . Derelict Logs Recovered . | . . . Drone Launches . | . . . Drone Recoveries . | . . . Exploration | -11 -10 -10 ------------- Run | Yrd Mat Min Turns Passed 524 | 64 240 220 Spaces Moved 417 | 50 224 143 Core 19 | 19 . . Treads . | . . . Legs . | . . . Wheels 398 | 31 224 143 Hover . | . . . Flight . | . . . Fastest Speed 50 | 50 80 95 Average Speed 91 | 68 94 95 Slowest Speed 95 | 80 95 95 Overloaded Moves . | . . . Propulsion Burnouts . | . . . Robots Hopped . | . . . Potential Cave-ins . | . . . Cave-ins Triggered . | . . . Exploration Rate (%) 25 | 3 41 33 Regions Visited 2 Branch Regions 1 Pre-discovered Areas . | . . . Known Exits Taken . | . . . Unknown Exits Taken 2 | 1 1 . Scrap Searched . | . . . Spaces Dug . | . . . Terrain Destroyed 43 | . . 43 Melee . | . . . Projectile . | . . . AOE 43 | . . 43 Terrain Rammed . | . . . Walls Destroyed . | . . . Machines Disabled . | . . . Actions | -11 -10 -10 --------- Run | Yrd Mat Min Total 514 | 74 253 187 Wait 42 | 8 23 11 Move 415 | 49 223 143 Hop . | . . . Pick Up 16 | 8 5 3 Fast Attach 3 | 3 . . Attach 10 | 4 . 6 Detach . | . . . Swap 2 | . 1 1 Drop 1 | . 1 . Fire 25 | 2 . 23 Melee . | . . . Ram . | . . . Kick . | . . . Crush . | . . . Escape Stasis . | . . . Rewire . | . . . Trap . | . . . Miscellaneous . | . . . Route ------- -11/Scrapyard -10/Materials (discovered 2 exits: [*Mat] / [*Min]) -10/Mines History --------- Turn | Location | Event 2 | -11/Scrapyard | Met Revision 17 13 | -11/Scrapyard | Discovered new exit (range 15) 65 | -11/Scrapyard | Entered Materials 214 | -10/Materials | Discovered new exit (range 14) 238 | -10/Materials | Discovered new exit (range 12) 305 | -10/Materials | Entered Mines 309 | -10/Mines | Build established: Mutant 327 | -10/Mines | Assembled infested the area 435 | -10/Mines | Core integrity fell below 50% 456 | -10/Mines | Core integrity fell below 20% 464 | -10/Mines | Lost 6 parts (1p1n1u3w) 525 | -10/Mines | Destroyed by Y-45 Defender with Heavy Assault Rifle Last Messages --------------- 00427_ as-94514 destroyed. 00428_ Wheel destroyed. 00430_ The unstable cave ceiling collapses. 00430_ Destroyed Asb. Hover Unit. 00430_ Grenade Launcher destroyed. 00430_ Destroyed Grenade Launcher. 00433_ Particle Gun destroyed. 00436_ as-67303 destroyed. 00439_ The unstable cave ceiling collapses. 00446_ as-81482 destroyed. 00446_ Switching to secondary target: as-11771. 00452_ The unstable cave ceiling collapses. 00455_ System corrupted: Matter fused (-8). 00457_ The unstable cave ceiling collapses. 00459_ as-11771 destroyed. 00462_ Acquired 2 matter. 00463_ Acquired 6 matter. 00477_ Ion Engine destroyed. 00480_ System corrupted: Energy discharge (-33). 00486_ The unstable cave ceiling collapses. Map ----- +----------------------------------------------------+ | ?????#!! / #?####=[ # | | ?????#!! / ### # ## | | ?????#"" # # = ###? | | ?????##"??# # ##??? | | ??????????# # ##??? | | ??????????# # #??? | | ??????????##### ####### #### | | ?????????????## #??###### ## | | ?????????????# #### #? ## | | ????????????### ## ### # ## | | ????????????## ## #? # ### ## | | ???????????## # ## # | | ????????#### # ## | | ????????# " | | ????????# # ##### # # | | ????????# ##### #?# # # # | | ????????# #???## #?## # #%# # | | ????##### #???### #??## ### # ## # | | ????# #????? ##???? ?### #??# | | ????# ####???? ?????? ??# #??? | | ????# #??????? #????? ?# #??? | | ????# #####??## ###### ###"#??? | | ????# Y ##??# ###?##?#%#??? | | ????# """ ##?# $ #??????# ??? | | ????# """ ## ###?????????## ??? | | ???## """ @ ##????????????? ??? | | ???# Y ## ##?????????????? ??? | | ???# ###########??????????????? ??? | | ???# ##????????????????????????? ??? | | ???## ##????????????????????????? ??? | | ????# #????????????????????????? ??? | | ???## #?????????????????????????^??? | | ???# #????????????????????????????? | | ???# #????????????????????????????? | | ???# ##????????????????????????????? | | ???# ##?????????????????????????????? | | ???####??????????????????????????????? | | ?????????????????????????????????????? | | ?????????????????????????????????????? | | ?????????????????????????????????????? | | ?????????????????????????????????????? | | ?????????????????????????????????????? | | ?????????????????????????????????????? | | ?????????????????????????????????????? | | ?????????????????????????????????????? | | ?????????????????????????????????????? | | ?????????????????????????????????????? | | ?????????????????????????????????????? | | ?????????????????????????????????????? | | ?????????????????????????????????????? | +----------------------------------------------------+ Best States ------------- Heat Dissipation 25 Energy Generation 14 Energy Capacity 250 Matter Stores 300 Matter Capacity 300 Sight Range 16 Terrain Scan Density 10 Evasion (%) 50 Item Schematics ----------------- None Robot Schematics ------------------ None Fabricated ------------ Nothing Repaired ---------- Nothing Studied --------- None Alien Tech Used ----------------- None Achievements -------------- You Again Challenges ------------ None Game ------ Seed GlidesysNavigationProtection Manual? 0 Play Time 00:08:49 Cumulative 35.6 hours Start 2026.01.26 @ 17:32:16 End 2026.01.26 @ 17:42:07 Sessions 1 Manual Loads 0 Difficulty Rogue Special Mode None Game No. 90 Rogue 90 Adventurer 0 Explorer 0 Win Type - Total 0 Types 0/0/0/0/0/0/0/0/0/0 Lore% 47 Gallery% 36 Achievement% 25 Wizard Run 0 Options --------- Layout 1 ASCII 0 Keyboard 0 Movement Mouse Keybinds 0 Fullscreen 1 Font 24/Smallcaps Map View 50x35 Zoom Use 0% Tactical HUD 1 Map Filters NONE Filters NONE Steam 1 RUN: e0e90663-64d5-4625-97e0-a9a408ae415e